Cogmind - Beta 9.3 *** ADVENTURER MODE // 2019.12.24 @ 02:04:59 Player: Rathgar Result: Self-destructed Performance ------------- Evolutions (2) 1000 Regions Visited (4) 800 Robots Destroyed (39) 195 Value Destroyed (962) 962 Prototype IDs (0) 0 Alien Tech Used (0) 0 Bonus (0) 0 TOTAL SCORE: 2957 Bonus ------- None Cogmind --------- Core Integrity 495/550 Matter 108/300 Energy 100/100 System Corruption 0% Temperature Cool (18) Movement Rolling (80) Location -8/Materials Parts ------- > --- POWER (2) -------- (None) > --- PROPULSION (3) --- Wheel > --- UTILITY (3) ------ Signal Interpreter Targeting Computer Core Shielding > --- WEAPON (3) ------- Rocket Launcher > --- INVENTORY (4) ---- Compact Matter Pod (150) Experimental Sensor Array Faulty Advanced Beam Cannon Autogun Peak State ------------ > --- POWER ------------ Ion Engine Ion Engine > --- PROPULSION ------- Wheel Wheel > --- UTILITY ---------- Signal Interpreter Targeting Computer Core Shielding > --- WEAPON ----------- Heavy Assault Rifle Rocket Launcher Rocket Launcher > --- INVENTORY -------- Compact Matter Pod Experimental Sensor Array Advanced Beam Cannon [Rating: 14] Favorites ----------- Power Ion Engine Engine Ion Engine Propulsion Wheel Wheel Wheel Utility Signal Interpreter Device Improved Terrain Scanner Processor Signal Interpreter Protection Core Shielding Weapon Rocket Launcher Energy Gun EM Pulse Gun Ballistic Gun Heavy Assault Rifle Launcher Rocket Launcher Build | -11 -10 -9 -9 -8 ------- Run | Scr Mat Mat Min Mat Slots Evolved 4 | . . 2 . 2 Power 1 | . . 1 . . Propulsion 1 | . . . . 1 Utility 1 | . . 1 . . Weapon 1 | . . . . 1 Parts Attached 26 | 8 7 7 1 3 Power 4 | 2 1 1 . . Engine 4 | 2 1 1 . . Core . | . . . . . Reactor . | . . . . . Propulsion 6 | 2 3 . . 1 Treads . | . . . . . Leg . | . . . . . Wheel 6 | 2 3 . . 1 Hover . | . . . . . Flight . | . . . . . Utility 8 | 2 1 3 1 1 Device 2 | 1 . 1 . . Storage . | . . . . . Processor 3 | 1 1 . . 1 Hackware . | . . . . . Protection 3 | . . 2 1 . Artifact . | . . . . . Weapon 8 | 2 2 3 . 1 Energy Gun 1 | 1 . . . . Energy Cannon . | . . . . . Ballistic Gun 5 | 1 2 2 . . Ballistic Cannon . | . . . . . Launcher 2 | . . 1 . 1 Special Weapon . | . . . . . Impact Weapon . | . . . . . Slashing Weapon . | . . . . . Piercing Weapon . | . . . . . Special Melee Weapon . | . . . . . Unidentified Prototypes . | . . . . . Parts Lost 10 | . 2 1 1 6 Power 2 | . . . . 2 Propulsion 3 | . 1 . . 2 Utility 2 | . . 1 1 . Weapon 3 | . 1 . . 2 Highest Loss Streak 5 | . 2 1 1 5 Average Slot Usage (%) 81 | . 89 83 86 74 Engine 16 | . 14 15 22 17 Wheel 16 | . 18 22 22 11 Device 5 | . 14 9 . . Processor 11 | . 14 11 11 9 Protection 5 | . . 2 9 9 Ballistic Gun 14 | . 25 12 11 9 Launcher 11 | . . 9 11 17 Naked Turns . | . . . . . Heaviest Build 22 | 8 9 22 22 22 Greatest Support 20 | 20 20 20 20 20 Greatest Overweight (x) 2 | . . 1 1 2 Average Overweight (x) . | . . . . 1 Largest Inventory Capacity 4 | 4 4 4 4 4 Average Capacity 4 | 4 4 4 4 4 Most Carried 4 | 2 4 4 4 4 Average Carried 3 | . 1 3 3 3 Final Capacity 4 | 4 4 4 4 4 Final Carried 4 | 1 2 4 4 4 Class Distribution -------------------- 46% | Scavenger-Mutant 37% | Scavenger-Bomber 12% | Mutant 3% | Scavenger-Tank Dominant Class ---------------- Scavenger-Mutant | -10/Materials Scavenger-Mutant | -9/Materials Scavenger-Mutant | -9/Mines Scavenger-Bomber | -8/Materials Resources | -11 -10 -9 -9 -8 ----------- Run | Scr Mat Mat Min Mat Matter Collected 960 | 363 94 148 210 145 Remotely . | . . . . . Salvage Created 914 | 141 225 200 66 282 Parts 70 | 12 20 15 4 19 Haulers Intercepted . | . . . . . Recyclers Shooed . | . . . . . Parts Field Recycled . | . . . . . Retrieved Matter . | . . . . . Parts Self-Destructed . | . . . . . Prevented . | . . . . . Kills | -11 -10 -9 -9 -8 ------- Run | Scr Mat Mat Min Mat Combat Hostiles Destroyed 24 | 1 5 4 2 12 Guns 12 | 1 5 4 . 2 AOE 12 | . . . 2 10 Classes Destroyed 10 | 3 3 1 1 2 Worker 4 | 1 1 . . 2 Builder 3 | . 1 1 . 1 Tunneler 4 | 4 . . . . Recycler 1 | . . . . 1 Operator 1 | . . . . 1 Watcher 2 | . 2 . . . Swarmer 7 | . 3 . . 4 Grunt 12 | 1 2 1 1 7 Duelist 2 | . . . 1 1 Sentry 3 | . . 3 . . Best Kill Streak 6 | 3 6 2 2 6 Combat Bots Only 5 | 1 2 1 2 5 Max Kills in Single Turn 3 | 2 2 1 2 3 Gunslinging 1 | . 1 . . . Exploded 3 | . . . 2 3 Melee . | . . . . . Uniques/NPCs Destroyed . | . . . . . Combat | -11 -10 -9 -9 -8 -------- Run | Scr Mat Mat Min Mat Damage Taken 952 | 68 303 131 74 376 Core 188 | 25 73 17 18 55 Absorbed by Shields 71 | . . 42 29 . Core Remaining (%) 80 | 90 60 . 91 . Volleys Fired 69 | 11 26 10 5 17 Largest 3 | 2 2 2 2 3 Hottest 89 | 60 60 56 56 89 Shots Fired 136 | 22 47 18 6 43 Gun 103 | 22 47 12 5 17 Cannon . | . . . . . Launcher 33 | . . 6 1 26 Special . | . . . . . Kinetic 86 | 11 41 12 5 17 Thermal . | . . . . . Explosive 33 | . . 6 1 26 Electromagnetic 17 | 11 6 . . . Robot Hit Streak 18 | 13 8 12 8 18 Robot Miss Streak 5 | 1 5 1 . 1 Penetration Max . | . . . . . Secondary Targets 2 | . 2 . . . Max Gunslinging Chain 1 | . 1 . . . Shots Hit Robots 97 | 19 29 12 6 31 Core Hits 62 | 7 14 8 3 30 Critical Hits 1 | . 1 . . . Critical Kills 1 | . 1 . . . Critical Parts Destroyed . | . . . . . Melee Attacks . | . . . . . Impact . | . . . . . Slashing . | . . . . . Piercing . | . . . . . Sneak Attacks . | . . . . . Combat Hostiles . | . . . . . Follow-up Attacks . | . . . . . Damage Inflicted 2822 | 311 389 272 130 1720 Guns 1013 | 246 389 121 67 190 Cannons . | . . . . . Explosions 1809 | 65 . 151 63 1530 Melee . | . . . . . Ramming . | . . . . . Kinetic 825 | 111 336 121 67 190 Thermal 65 | 65 . . . . Explosive 1744 | . . 151 63 1530 Electromagnetic 188 | 135 53 . . . Impact . | . . . . . Slashing . | . . . . . Piercing . | . . . . . Highest Corruption . | . . . . . Average Corruption . | . . . . . Corruption Purged . | . . . . . Overload Shots . | . . . . . Overflow Damage 59 | . . 8 . 51 Projectiles . | . . . . . Explosions 59 | . . 8 . 51 Melee . | . . . . . Knockbacks . | . . . . . Impact . | . . . . . Kinetic . | . . . . . Secondary . | . . . . . Self-Inflicted Damage 53 | . . 28 . 25 Shots 3 | . . 1 . 2 Rammed . | . . . . . Targets Rammed . | . . . . . Kicked . | . . . . . Crushed . | . . . . . Highest Temperature 117 | 48 36 39 . 117 Average Temperature 29 | 34 17 15 . 37 Received Heat Transfer 458 | 48 135 47 12 216 Siege Activations . | . . . . . Robots Corrupted . | . . . . . Combat Hostiles . | . . . . . Parts Fried 1 | 1 . . . . Impact Corruptions . | . . . . . Robots Melted . | . . . . . Combat Hostiles . | . . . . . Parts Melted 1 | 1 . . . . Heat Transferred 50 | 50 . . . . Parts Sabotaged . | . . . . . Parts Stolen . | . . . . . Parts Stripped . | . . . . . Power Chain Reactions 1 | 1 . . . . Missiles Intercepted . | . . . . . Alert | -11 -10 -9 -9 -8 ------- Run | Scr Mat Mat Min Mat Peak Influence 273 | 45 114 208 108 273 Average Influence 89 | 24 73 106 101 100 Maximum Alert Level 1 | . . 1 . 1 Low Security (%) 87 | 100 100 89 100 75 Level 1 12 | . . 10 . 24 Level 2 . | . . . . . Level 3 . | . . . . . Level 4 . | . . . . . Level 5 . | . . . . . High Security . | . . . . . Max Security . | . . . . . Squads Dispatched 2 | . . . . 2 Investigation . | . . . . . Extermination . | . . . . . Reinforcement 2 | . . . . 2 Assault . | . . . . . Garrison . | . . . . . Intercept . | . . . . . Construction Impeded 1 | . . . . 1 Haulers Reinforced . | . . . . . Stealth | -11 -10 -9 -9 -8 --------- Run | Scr Mat Mat Min Mat Distress Signals 2 | . . . . 2 Communications Jammed . | . . . . . Distress Signals . | . . . . . Times Spotted 42 | 1 14 4 2 21 Peak Tracking Total 8 | 1 6 1 2 8 Tactical Retreats 2 | . 2 . . . Traps | -11 -10 -9 -9 -8 ------- Run | Scr Mat Mat Min Mat Traps Triggered . | . . . . . Indirectly . | . . . . . Trap Hack Attempts . | . . . . . Triggered . | . . . . . Disarmed . | . . . . . Reprogrammed . | . . . . . Reused . | . . . . . Traps Extracted . | . . . . . Installed . | . . . . . Triggered . | . . . . . Machines | -11 -10 -9 -9 -8 ---------- Run | Scr Mat Mat Min Mat Machines Disabled 5 | . . 2 . 3 Max in Single Turn 2 | . . 1 . 2 Machines Sabotaged . | . . . . . Garrisons Compromised . | . . . . . Overloaded Fab Kills . | . . . . . Fab Network Shutdowns . | . . . . . Hacking | -11 -10 -9 -9 -8 --------- Run | Scr Mat Mat Min Mat Machines Accessed 3 | . 2 . 1 . Terminals 3 | . 2 . 1 . Fabricators . | . . . . . Repair Stations . | . . . . . Recycling Units . | . . . . . Scanalyzers . | . . . . . Garrison Access . | . . . . . Total Hacks 6 | . 4 . 2 . Successful 5 | . 3 . 2 . Failed 1 | . 1 . . . Catastrophic . | . . . . . Database Lockouts . | . . . . . Manual . | . . . . . Terminals 6 | . 4 . 2 . Fabricators . | . . . . . Repair Stations . | . . . . . Recycling Units . | . . . . . Scanalyzers . | . . . . . Garrison Access . | . . . . . Terminal Hacks 5 | . 3 . 2 . Record 1 | . . . 1 . Robot Analysis 1 | . 1 . . . Branch Access Points 1 | . 1 . . . Alert Level 1 | . 1 . . . Dispatch Records 1 | . . . 1 . Fabricator Hacks . | . . . . . Repair Station Hacks . | . . . . . Recycling Unit Hacks . | . . . . . Scanalyzer . | . . . . . Garrison Access Hacks . | . . . . . Unauthorized Hacks . | . . . . . Terminals . | . . . . . Fabricators . | . . . . . Repair Stations . | . . . . . Recycling Units . | . . . . . Scanalyzers . | . . . . . Garrison Access . | . . . . . Data Cores Recovered . | . . . . . Used . | . . . . . Hacking Detections . | . . . . . Full Trace Events . | . . . . . Feedback Events . | . . . . . Feedback Blocked . | . . . . . Robot Schematics Acquired . | . . . . . Robots Built . | . . . . . Matter . | . . . . . Time . | . . . . . Total Robot Build Rating . | . . . . . Part Schematics Acquired . | . . . . . Parts Built . | . . . . . Matter . | . . . . . Time . | . . . . . Total Part Build Rating . | . . . . . Parts Repaired . | . . . . . Time . | . . . . . Parts Recycled . | . . . . . Recycled Matter . | . . . . . Retrieved Matter . | . . . . . Retrieved Components . | . . . . . Parts Scanalyzed . | . . . . . Part Schematics Acquired . | . . . . . Parts Damaged . | . . . . . Bothacking | -11 -10 -9 -9 -8 ------------ Run | Scr Mat Mat Min Mat Used RIF Installer . | . . . . . Robots Hacked . | . . . . . Non-combat . | . . . . . Combat . | . . . . . Robot Hacks Applied . | . . . . . Relay Couplers Released . | . . . . . Robots Rewired . | . . . . . Allies Hacked . | . . . . . Hacks Repelled . | . . . . . Allies | -11 -10 -9 -9 -8 -------- Run | Scr Mat Mat Min Mat Total Allies . | . . . . . Largest Group . | . . . . . Highest-Rated Group . | . . . . . Highest-Rated Ally . | . . . . . Total Orders . | . . . . . Ally Attacks . | . . . . . Total Damage . | . . . . . Kills . | . . . . . Allies Corrupted . | . . . . . Allies Melted . | . . . . . Intel | -11 -10 -9 -9 -8 ------- Run | Scr Mat Mat Min Mat Robot Analysis Total 1 | . 1 . . . Derelict Logs Recovered . | . . . . . Drone Launches . | . . . . . Drone Recoveries . | . . . . . Exploration | -11 -10 -9 -9 -8 ------------- Run | Scr Mat Mat Min Mat Turns Passed 2279 | 170 549 391 212 957 Spaces Moved 1137 | 158 256 240 243 240 Core 22 | 22 . . . . Treads . | . . . . . Legs . | . . . . . Wheels 1115 | 136 256 240 243 240 Hover . | . . . . . Flight . | . . . . . Fastest Speed 50 | 50 80 80 80 80 Average Speed 82 | 75 80 83 80 91 Slowest Speed 100 | 80 80 90 90 100 Overloaded Moves . | . . . . . Propulsion Burnouts . | . . . . . Robots Hopped . | . . . . . Cave-ins Triggered . | . . . . . Exploration Rate (%) 25 | 5 37 18 50 19 Regions Visited 4 Branch Regions 1 Pre-discovered Areas . | . . . . . Known Exits Taken 3 | . 1 1 1 . Unknown Exits Taken 1 | 1 . . . . Scrap Searched 2 | . . . 2 . Spaces Dug . | . . . . . Terrain Destroyed 211 | 6 . 50 15 140 Melee . | . . . . . Projectile . | . . . . . AOE 211 | 6 . 50 15 140 Actions | -11 -10 -9 -9 -8 --------- Run | Scr Mat Mat Min Mat Total 2354 | 186 555 414 255 944 Wait 1075 | . 258 142 . 675 Move 1133 | 157 255 239 242 240 Hop . | . . . . . Pick Up 35 | 9 6 10 4 6 Fast Attach . | . . . . . Attach 19 | 7 3 5 1 3 Detach 2 | . 1 1 . . Swap 7 | 1 4 2 . . Drop 14 | 1 2 5 3 3 Fire 69 | 11 26 10 5 17 Melee . | . . . . . Ram . | . . . . . Kick . | . . . . . Crush . | . . . . . Escape Stasis . | . . . . . Rewire . | . . . . . Trap . | . . . . . Miscellaneous . | . . . . . Route ------- -11/Scrapyard -10/Materials (discovered 2 exits: *Mat / Min) -9/Materials -9/Mines -8/Materials History --------- Turn | Location | Event 2 | -11/Scrapyard | Met Revision 17 43 | -11/Scrapyard | Discovered new exit (range 8) 171 | -11/Scrapyard | Entered Materials 598 | -10/Materials | Build established: Scavenger-Mutant 706 | -10/Materials | Identified exit to Mines 714 | -10/Materials | Discovered new exit (range 5) 718 | -10/Materials | Identified exit to Materials 720 | -10/Materials | Entered another Materials area 720 | -9/Materials | Evolved 2 slots: Power x1, Utility x1 1092 | -9/Materials | Discovered new exit (range 15) 1110 | -9/Materials | Identified exit to Mines 1111 | -9/Materials | Entered Mines 1136 | -9/Mines | Met a Derelict bent on vengeance 1207 | -9/Mines | Found a damaged Exp. Sensor Array with a note attached 1210 | -9/Mines | Found Prototype Device 1303 | -9/Mines | Discovered new exit (range 15) 1322 | -9/Mines | Identified exit to Materials 1323 | -9/Mines | Entered Materials 1323 | -8/Materials | Evolved 2 slots: Propulsion x1, Weapon x1 1698 | -8/Materials | Build established: Scavenger-Bomber 2280 | -8/Materials | Self-destructed Last Messages --------------- 02269_ U-05 Engineer lays Concrete. 02271_ Critical hit. 02271_ Rocket Launcher destroyed. 02271_ U-05 Engineer lays Concrete. 02273_ The unstable cave ceiling collapses. 02273_ U-05 Engineer lays Concrete. 02273_ C-30 ARC bursts open, deploying its payload. 02273_ G-50 Soldier unfolds itself. 02273_ G-47 Trooper unfolds itself. 02273_ U-05 Engineer lays Concrete. 02273_ Acquired 40 matter. 02273_ U-05 Engineer lays Concrete. 02274_ Ion Engine destroyed. 02274_ U-05 Engineer lays Concrete. 02277_ Wheel destroyed. 02277_ U-05 Engineer lays Concrete. 02277_ Integration Channel disabled. 02277_ U-05 Engineer lays Concrete. 02280_ Hvy. Assault Rifle destroyed. 02280_ K-01 Serf collects debris. Map ----- +----------------------------------------------------+ | ######### #?????????????????????????????? | | # """ ## #?????????????????????????????? | | # """ ## #?????????????????????????????? | | +### # """ ## #??????#??????????????????????? | | ### ## ## ####? #??????????????????????? | | # # ## # #??????????????????????? | | ### # # #??????????????????????? | | ## #### #### #??????????????????????? | | ## ! [ #??????????????????????? | | + #??????????????????????? | | ####! *% #??????????????????????? | | # # ########## k */ ??????????????????? | | ####### ## # # # ## # %# """?????????????????? | | ### # #######?## #??""??????????????????? | | ##################### ggg#??????????????????????? | | # ^^ #??????????????????????? | | + #??????????????????????? | | # ^ """ =! u#??????????????????????? | | ### ##### ^""" =! #??????????????????????? | | !#?# #???# """ #??????????????????????? | | ####+##### ^ ##?????????????????????? | | = # ###???????###?????????? | | # " ""w " "u ##### #?????????? | | # T " u #?????????? | | """ """ + " ] ] Y #?????????? | | """ """ # g * uu@ ] #?????????? | | """ """ # g = # #####???????????????? | | # g### = #???????????????????? | | # #?# #?????????????????? | | ########## #?# #?????????????????? | | ?????????# #?## "" #?????????????????? | | ?????????# #??# """ #?????????????????? | | ?????????# #??# " #?????????????????? | | ?????????# #??# #?????????????????? | | ????????? #??#### #######?????????????????? | | ????????? #????? ????????????????????????? | | ???????? #????? ????????????????????????? | | ???????? /???? ????????????????????????? | | ???????# #???? ????????????????????????? | | ???????? #?????? ?????????????????????????? | | ????????? ?????????#?????????????????????????? | | ?????????????????????????????????????????????????? | | ?????????????????????????????????????????????????? | | ?????????????????????????????????????????????????? | | ?????????????????????????????????????????????????? | | ?????????????????????????????????????????????????? | | ?????????????????????????????????????????????????? | | ?????????????????????????????????????????????????? | | ?????????????????????????????????????????????????? | | ?????????????????????????????????????????????????? | +----------------------------------------------------+ Best States ------------- Heat Dissipation 31 Energy Generation 15 Energy Capacity 400 Matter Stores 300 Matter Capacity 300 Sight Range 16 Terrain Scan Range 16 Terrain Scan Density 60 Armor Coverage 150 Resistance: KI 20 Resistance: TH 20 Resistance: EX 20 Resistance: EM 20 Resistance: I 20 Resistance: S 20 Resistance: P 20 Core Shielding 20 Evasion (%) 50 Targeting Accuracy 5 Offensive Hacking 10 Item Schematics ----------------- None Robot Schematics ------------------ None Fabricated ------------ Nothing Alien Tech Used ----------------- None Achievements -------------- None Challenges ------------ None Game ------ Seed RecoilThrusterWeb Manual? 0 Play Time 00:27:54 Cumulative 2.3 hours Start 2019.12.24 @ 01:38:04 End 2019.12.24 @ 02:04:59 Sessions 1 Manual Loads 0 Difficulty Adventurer Special Mode None Game No. 2 Rogue 0 Adventurer 2 Explorer 0 Win Type - Total 0 Types 0/0/0/0/0/0/0 Lore% 11 Gallery% 3 Achievement% 5 Wizard Run 0 Options --------- ASCII 0 Keyboard 0 Movement Arrows Keybinds 0 Fullscreen 1 Font 18/SmallcapsGlow Map View 76x50 Tactical HUD 1 Map Filters NONE Filters NONE Steam 1 RUN: 4808fc2c-c1d6-4aa9-ab36-58f5d3bbf4fa